bitfinex-derivatives/quotes_BTCF0:USTF0_20250308
["timestamp","ask_amount","ask_price","bid_price","bid_amount"]
[1741430881843,0.07506667,86207.0,86206.0,0.1160104]
[1741430882149,0.11116667,86207.0,86206.0,0.1160104]
[1741430882446,0.11116667,86207.0,86206.0,0.12770999]
[1741430884051,0.17866667,86207.0,86206.0,0.12770999]
[1741430885752,0.17866667,86207.0,86206.0,0.51269672]
[1741430888751,0.17866667,86207.0,86206.0,0.50769549]
[1741430889753,0.17866667,86207.0,86206.0,0.4959959]
[1741430890742,0.17866667,86207.0,86206.0,0.45728812]
[1741430891455,0.17866667,86207.0,86206.0,0.34127772]
[1741430891745,0.29467577,86207.0,86206.0,0.22907772]
[1741430893654,0.1160104,86206.0,86205.0,0.34593735]
[1741430894750,0.12789159,86206.0,86205.0,0.34593735]
[1741430895057,0.19829159,86206.0,86205.0,0.34593735]
[1741430896152,0.21573159,86206.0,86205.0,0.34593735]
[1741430896859,0.1160199,86199.0,86198.0,0.2769122]
[1741430897047,0.4768199,86199.0,86198.0,0.2769122]
[1741430897752,0.5822199,86199.0,86198.0,0.2769122]
[1741430900154,0.58236318,86199.0,86198.0,0.2769122]
[1741430901348,0.1160212,86198.0,86197.0,0.2769122]
[1741430901848,0.1879212,86198.0,86197.0,0.2769122]
[1741430902545,0.0719,86198.0,86197.0,0.3929347]
[1741430902745,0.36094328,86199.0,86197.0,0.3929347]
[1741430902950,0.00014328,86199.0,86198.0,0.1160212]
[1741430903146,0.00014328,86199.0,86198.0,0.1879212]
[1741430904062,0.00014328,86199.0,86198.0,0.22629676]
[1741430905363,0.00014328,86199.0,86198.0,0.26788422]
[1741430905852,0.00014328,86199.0,86198.0,0.27940372]
[1741430908554,0.00014328,86199.0,86198.0,0.31414712]
[1741430909764,0.07505401,86209.0,86208.0,0.1160077]
[1741430909959,0.07505401,86209.0,86208.0,0.15438326]
[1741430910660,0.07514671,86209.0,86208.0,0.15438326]
[1741430912068,0.00026671,86209.0,86208.0,0.15438326]
[1741430912270,1e-08,86209.0,86208.0,0.15438326]
[1741430912654,1e-08,86209.0,86208.0,0.19667456]
[1741430913764,1e-08,86209.0,86208.0,0.26837456]
[1741430914469,1e-08,86209.0,86208.0,0.60406175]
[1741430918562,0.00017401,86217.0,86216.0,0.115997]
[1741430918765,0.00017401,86217.0,86216.0,0.15437256]
[1741430918964,0.00017401,86217.0,86216.0,0.115997]
[1741430919573,0.00031505,86217.0,86216.0,0.185897]
[1741430920968,0.07221505,86217.0,86216.0,0.185897]
[1741430921474,0.07221505,86217.0,86216.0,0.19755624]
[1741430925178,0.00031505,86217.0,86216.0,0.19755624]
[1741430928278,0.00031505,86217.0,86216.0,0.23637965]
[1741430930981,0.00031505,86217.0,86216.0,0.19755624]
[1741430933079,0.00031505,86217.0,86216.0,0.2364239]
[1741430934976,0.00031505,86217.0,86216.0,0.2003239]
[1741430935879,0.00031505,86217.0,86216.0,0.24246896]
[1741430936080,0.00031505,86217.0,86216.0,0.58025746]
[1741430940076,0.00031505,86217.0,86216.0,0.54645746]
[1741430941183,0.00031505,86217.0,86216.0,0.61805746]
[1741430944390,0.00031505,86217.0,86216.0,0.65294619]
[1741430944980,0.00031505,86217.0,86216.0,1.05711869]
[1741430945591,0.00031505,86217.0,86216.0,1.02222996]
[1741430948982,0.00031505,86217.0,86216.0,1.05714979]
[1741430950987,0.00031505,86217.0,86216.0,1.02222996]
[1741430956097,0.00031505,86217.0,86216.0,1.05715872]
[1741430958597,0.00031505,86217.0,86216.0,1.02222996]
[1741430958799,0.00031505,86217.0,86216.0,1.05721757]
[1741430961094,0.00031505,86217.0,86216.0,1.02222996]
[1741430962600,0.00031505,86217.0,86216.0,0.95062996]
[1741430963591,0.00031505,86217.0,86216.0,1.02032996]
[1741430965997,0.00031505,86217.0,86216.0,0.98682996]
[1741430966200,0.36111505,86217.0,86216.0,0.95062996]
[1741430969210,0.00031505,86217.0,86216.0,0.95062996]
[1741430970501,0.36111505,86217.0,86216.0,0.95062996]
[1741430970899,0.00031505,86217.0,86216.0,0.9622779]
[1741430971104,0.36111505,86217.0,86216.0,0.9622779]
[1741430971310,0.36111505,86217.0,86216.0,0.95061866]
[1741430973410,0.00031505,86217.0,86216.0,0.95061866]
[1741430973607,0.36111505,86217.0,86216.0,0.95061866]
[1741430973806,0.37316954,86217.0,86216.0,0.95061866]
[1741430974312,0.46691505,86217.0,86216.0,0.95061866]
[1741430975116,0.46691505,86217.0,86216.0,0.53479822]
[1741430975516,0.46691505,86217.0,86216.0,0.49265316]
[1741430976020,0.46691505,86217.0,86216.0,0.4537855]
[1741430976413,0.47851285,86217.0,86216.0,0.4537855]
[1741430979609,0.47851285,86217.0,86216.0,0.80015831]
[1741430979819,0.59450845,86217.0,86216.0,0.80015831]
[1741430982223,0.59450845,86217.0,86216.0,0.83946032]
[1741430982416,0.47851285,86217.0,86216.0,0.83946032]
[1741430982611,0.47851285,86217.0,86216.0,0.15529901]
[1741430982816,0.46691505,86217.0,86216.0,0.15529901]
[1741430983318,0.11801406,86217.0,86216.0,0.15529901]
[1741430984120,0.10611505,86217.0,86216.0,0.15529901]
[1741430985423,0.46691505,86217.0,86216.0,0.15529901]
[1741430986013,0.47879524,86217.0,86216.0,0.115997]
[1741430986620,0.46691505,86217.0,86216.0,0.15526219]
[1741430988620,0.46691505,86217.0,86216.0,0.18956219]
[1741430989530,0.46691505,86217.0,86216.0,0.83680058]
[1741430990329,0.10611505,86217.0,86216.0,0.83680058]
[1741430990519,0.46691505,86217.0,86216.0,0.83680058]
[1741430992321,0.10611505,86217.0,86216.0,0.83680058]
[1741430992623,0.10611505,86217.0,86216.0,0.150297]
[1741430993028,0.10611505,86217.0,86216.0,0.186097]
[1741430995622,0.10611505,86217.0,86216.0,0.22537686]
[1741430995822,0.07515505,86217.0,86216.0,0.26097686]
[1741430996223,0.07515505,86217.0,86216.0,0.30354783]
[1741430998826,0.19115065,86217.0,86216.0,0.04257097]
[1741430999422,0.116001,86213.0,86212.0,0.41582044]
[1741431000222,0.116001,86213.0,86206.0,0.0339]
[1741431000421,0.4768091,86207.0,86206.0,0.0339]
[1741431000623,0.4885589,86207.0,86206.0,0.07374136]
[1741431000828,0.4885589,86207.0,86206.0,0.18975176]
[1741431001234,0.5577589,86207.0,86206.0,0.07374136]
[1741431001728,0.5577589,86207.0,86206.0,0.18975176]
[1741431002330,0.5577589,86207.0,86206.0,0.11679926]
[1741431004137,0.5577589,86207.0,86206.0,0.46329202]
[1741431004536,0.5577589,86207.0,86206.0,0.42345066]
[1741431004931,0.1969589,86207.0,86206.0,0.38039276]
[1741431007038,0.1969589,86207.0,86206.0,0.42010568]
[1741431007225,0.1969589,86207.0,86206.0,0.38039276]
[1741431008034,0.5577589,86207.0,86206.0,0.38039276]
[1741431008237,0.4417498,86207.0,86206.0,0.53140316]
[1741431008539,0.43,86207.0,86206.0,0.22476101]
[1741431009238,0.39373427,86207.0,86206.0,0.21280152]
[1741431010137,0.39373427,86207.0,86206.0,0.19829526]
[1741431012233,0.39373427,86207.0,86206.0,0.19830791]
[1741431012540,0.42963427,86207.0,86206.0,0.19830791]
[1741431014640,0.54564337,86207.0,86206.0,0.19830791]
[1741431015143,0.54564337,86207.0,86206.0,0.23839159]
[1741431015343,0.42963427,86207.0,86206.0,0.23839159]
[1741431015840,0.3608,86207.0,86206.0,0.23839159]
[1741431016043,0.35746892,86207.0,86206.0,0.23839159]
[1741431016245,0.35746892,86207.0,86206.0,0.22499408]
[1741431016543,0.43230892,86207.0,86206.0,0.22499408]
[1741431017145,0.43230892,86207.0,86206.0,0.26811233]
[1741431020838,0.54831802,86207.0,86206.0,0.15210193]
[1741431021039,0.43230892,86207.0,86206.0,0.58070402]
[1741431021345,0.43230892,86207.0,86206.0,0.63400759]
[1741431021837,0.43230892,86207.0,86206.0,0.59088934]
[1741431022342,0.39604503,86207.0,86206.0,0.60535196]
[1741431023144,0.39604503,86207.0,86206.0,0.59088934]
[1741431024947,0.43574503,86207.0,86206.0,0.59088934]
[1741431025335,0.11454,86207.0,86206.0,0.59088934]
[1741431026146,0.11454,86207.0,86206.0,0.59091158]
[1741431026147,0.07827607,86207.0,86206.0,0.59091158]
[1741431027047,0.11727607,86207.0,86206.0,0.59091158]
[1741431027353,0.23328517,86207.0,86206.0,0.59091158]
[1741431027651,0.23328517,86207.0,86206.0,0.47490118]
[1741431028142,0.23328517,86207.0,86206.0,0.47483342]
[1741431028343,0.11727607,86207.0,86206.0,0.59084382]
[1741431028537,0.23328517,86207.0,86206.0,0.47483342]
[1741431028943,0.23328517,86207.0,86206.0,0.59084382]
[1741431029148,0.23328517,86207.0,86206.0,0.47483342]
[1741431029348,0.23328517,86207.0,86206.0,0.46146153]
[1741431030547,0.23328517,86207.0,86206.0,0.42157537]
[1741431030944,0.59408517,86207.0,86206.0,0.42157537]
[1741431032447,0.59408517,86207.0,86206.0,0.53758577]
[1741431032657,0.59408517,86207.0,86206.0,0.57730632]
[1741431033154,0.23328517,86207.0,86206.0,0.57730632]
[1741431033353,0.59408517,86207.0,86206.0,0.57730632]
[1741431033945,0.59408517,86207.0,86206.0,0.46129592]
[1741431038151,0.59408517,86207.0,86206.0,0.42157537]
[1741431038854,0.23328517,86207.0,86206.0,0.76849541]
[1741431039052,0.59408517,86207.0,86206.0,0.76849541]
[1741431039454,0.59408517,86207.0,86206.0,0.73349541]
[1741431040057,0.59408517,86207.0,86206.0,0.69959541]
[1741431040058,0.59417305,86207.0,86206.0,0.69959541]
[1741431043055,0.59417305,86207.0,86206.0,0.73989541]
[1741431043265,0.23337305,86207.0,86206.0,0.73989541]
[1741431043450,0.59417305,86207.0,86206.0,0.73989541]
[1741431044551,0.59417305,86207.0,86206.0,0.0403]
[1741431044855,0.23337305,86207.0,86206.0,0.0403]
[1741431045052,0.59417305,86207.0,86206.0,0.0403]
[1741431045452,0.23337305,86207.0,86206.0,0.0403]
[1741431045650,0.59417305,86207.0,86206.0,0.0403]
[1741431046154,0.59417305,86207.0,86200.0,0.34709405]
[1741431046155,0.1160172,86201.0,86200.0,0.34709405]
[1741431046359,0.4768172,86201.0,86200.0,0.34709405]
[1741431046866,0.4769461,86201.0,86200.0,0.34709405]
[1741431047157,0.5519172,86201.0,86200.0,0.34709405]
[1741431048757,0.55201708,86201.0,86200.0,0.34709405]
[1741431048963,0.5519172,86201.0,86200.0,0.34709405]
[1741431049150,0.55200323,86201.0,86200.0,0.34709405]
[1741431049463,0.5519172,86201.0,86200.0,0.34709405]
[1741431050160,0.5519172,86201.0,86200.0,0.00017401]
[1741431052058,0.5519172,86201.0,86200.0,0.03947401]
[1741431052354,0.5519172,86201.0,86200.0,0.00017401]
[1741431053858,0.0580111,86198.0,86194.0,0.2080677]
[1741431054165,0.1160252,86195.0,86194.0,0.2080677]
[1741431054363,0.1908252,86195.0,86194.0,0.2080677]
[1741431056364,0.2082652,86195.0,86194.0,0.2080677]
[1741431056867,0.1160293,86192.0,86191.0,0.0393]
[1741431057068,0.4768293,86192.0,86191.0,0.0393]
[1741431059369,0.47697303,86192.0,86191.0,0.0393]
[1741431059566,0.47693549,86192.0,86191.0,0.0393]
[1741431059769,0.4768293,86192.0,86191.0,0.0393]
[1741431059964,0.48871259,86192.0,86191.0,0.0393]
[1741431060566,0.48881661,86192.0,86191.0,0.0393]
[1741431060773,0.48883144,86192.0,86191.0,0.0393]
[1741431060971,0.48884093,86192.0,86191.0,0.0393]
[1741431061168,0.48883608,86192.0,86191.0,0.0393]
[1741431061376,0.48884264,86192.0,86191.0,0.0393]
[1741431061570,0.48871259,86192.0,86191.0,0.0393]
[1741431064470,0.48880025,86192.0,86191.0,0.05272869]
[1741431064673,0.48871259,86192.0,86191.0,0.05272869]
[1741431064892,0.37268329,86192.0,86191.0,0.05272869]
[1741431065175,0.48880131,86192.0,86191.0,0.05272869]
[1741431065366,0.48871259,86192.0,86191.0,0.05272869]
[1741431066061,0.48884116,86192.0,86191.0,0.05272869]
[1741431066370,0.48871259,86192.0,86191.0,0.06716625]
[1741431067268,0.48871259,86192.0,86191.0,0.05373756]
[1741431067471,0.48871259,86192.0,86191.0,0.06716776]
[1741431068177,0.48871259,86192.0,86191.0,0.10476776]
[1741431071678,0.48871259,86192.0,86191.0,0.09133756]
[1741431072578,0.116036,86187.0,86185.0,0.2774236]
[1741431072781,0.5785,86187.0,86173.0,0.41579131]
[1741431073081,0.4768454,86180.0,86174.0,0.0762]
[1741431073279,0.5516454,86180.0,86174.0,0.0762]
[1741431073880,0.6314454,86180.0,86174.0,0.0762]
[1741431074679,0.6314454,86180.0,86178.0,0.34692004]
[1741431074680,0.1160468,86179.0,86178.0,0.34692004]
[1741431075074,0.1958468,86179.0,86178.0,0.34692004]
[1741431075674,0.4356,86180.0,86178.0,0.34692004]
[1741431075675,0.36962099,86180.0,86178.0,0.34692004]
[1741431075874,0.19103481,86179.0,86178.0,0.34692004]
[1741431076078,0.20847481,86179.0,86178.0,0.34692004]
[1741431076286,0.32277481,86179.0,86178.0,0.34692004]
[1741431077076,0.3226268,86179.0,86178.0,0.34692004]
[1741431077683,0.3226268,86179.0,86171.0,0.00017401]
[1741431077886,0.4768562,86172.0,86171.0,0.00017401]
[1741431078681,0.5546562,86172.0,86171.0,0.00017401]
[1741431080281,0.5547691,86172.0,86171.0,0.00017401]
[1741431080487,0.5546562,86172.0,86171.0,0.00017401]
[1741431081682,0.5547683,86172.0,86171.0,0.00017401]
[1741431081884,0.55474124,86172.0,86171.0,0.00017401]
[1741431082081,0.5546562,86172.0,86171.0,0.00017401]
[1741431082387,0.4768562,86172.0,86171.0,0.00017401]
[1741431082587,0.36093657,86172.0,86171.0,0.00017401]
[1741431083180,0.36093657,86172.0,86171.0,0.11623161]
[1741431083881,0.43577657,86172.0,86171.0,0.11623161]
[1741431084886,0.55183277,86172.0,86171.0,0.00017401]
[1741431094589,0.43577657,86172.0,86171.0,0.00017401]
[1741431094793,0.43577657,86172.0,86171.0,0.11623161]
[1741431095001,0.43577657,86172.0,86171.0,0.19413161]
[1741431095184,0.43577657,86172.0,86171.0,0.07807401]
[1741431095389,0.55183277,86172.0,86171.0,0.07807401]
[1741431098401,0.62883277,86172.0,86171.0,0.07807401]
[1741431101798,0.26803277,86172.0,86171.0,0.07807401]
[1741431101997,0.62883277,86172.0,86171.0,0.07807401]
[1741431105502,0.55399277,86172.0,86171.0,0.07807401]
[1741431105693,0.62883277,86172.0,86171.0,0.07807401]
[1741431106299,0.6286962,86172.0,86171.0,0.07807401]
[1741431106492,0.6286962,86172.0,86171.0,0.03777401]
[1741431106698,0.62881282,86172.0,86171.0,0.03777401]
[1741431106900,0.6286962,86172.0,86171.0,0.00017401]
[1741431110602,0.62883856,86172.0,86171.0,0.00017401]
[1741431110804,0.6286962,86172.0,86171.0,0.00017401]
[1741431111998,0.62879797,86172.0,86171.0,0.00017401]
[1741431112200,0.6286962,86172.0,86171.0,0.00017401]
[1741431113001,0.9894962,86172.0,86171.0,0.00017401]
[1741431115106,0.116067,86164.0,86163.0,0.0802]
[1741431115298,0.476867,86164.0,86163.0,0.0802]
[1741431115901,0.47699795,86164.0,86163.0,0.0802]
[1741431116201,0.476867,86164.0,86163.0,0.0802]
[1741431116508,0.50585474,86164.0,86163.0,0.0802]
[1741431116897,0.50597179,86164.0,86163.0,0.0802]
[1741431117097,0.50597117,86164.0,86163.0,0.0802]
[1741431117293,0.50593706,86164.0,86163.0,0.0802]
[1741431117502,0.50585474,86164.0,86163.0,0.0802]
[1741431117808,0.61001598,86164.0,86163.0,0.0802]
[1741431119309,0.97081598,86164.0,86163.0,0.0802]
[1741431121303,0.86665474,86164.0,86163.0,0.0802]
[1741431127404,0.75058774,86164.0,86163.0,0.0802]
[1741431127599,0.86665474,86164.0,86163.0,0.0802]
[1741431130810,0.8667771,86164.0,86163.0,0.0802]
[1741431131009,0.86665474,86164.0,86163.0,0.0802]
[1741431135213,0.14505474,86164.0,86163.0,0.0802]
[1741431135415,0.50585474,86164.0,86163.0,0.0802]
[1741431136313,0.48841474,86164.0,86163.0,0.0802]
[1741431136521,0.50585474,86164.0,86163.0,0.0802]
[1741431136916,0.50597727,86164.0,86163.0,0.0802]
[1741431137108,0.50585474,86164.0,86163.0,0.0802]
[1741431137312,0.50595213,86164.0,86163.0,0.0802]
[1741431137512,0.50585474,86164.0,86163.0,0.0802]
[1741431138524,0.54335474,86164.0,86163.0,0.0802]
[1741431139319,0.18255474,86164.0,86163.0,0.0802]
[1741431139517,0.54335474,86164.0,86163.0,0.0802]
[1741431140215,0.18255474,86164.0,86163.0,0.0802]
[1741431140416,0.54335474,86164.0,86163.0,0.0802]
[1741431141324,0.18255474,86164.0,86163.0,0.0802]
[1741431141716,0.54335474,86164.0,86163.0,0.0802]
[1741431147520,0.54346687,86164.0,86163.0,0.0802]
[1741431147726,0.54335474,86164.0,86163.0,0.0802]
[1741431150929,0.50600433,86164.0,86163.0,0.0802]
[1741431151128,0.43578959,86164.0,86163.0,0.0802]
[1741431151328,0.55185659,86164.0,86163.0,0.0802]
[1741431151527,0.56339664,86164.0,86163.0,0.0802]
[1741431152732,0.60109664,86164.0,86163.0,0.0802]
[1741431154424,0.55185659,86164.0,86163.0,0.0802]
[1741431156735,0.55185659,86164.0,86163.0,0.35784678]
[1741431157836,0.56338846,86164.0,86163.0,0.35784678]
[1741431159134,0.63738846,86164.0,86163.0,0.35784678]
[1741431161135,0.63738846,86164.0,86163.0,0.0802]
[1741431163440,0.27658846,86164.0,86163.0,0.0802]
[1741431163637,0.63738846,86164.0,86163.0,0.0802]
[1741431163941,0.27658846,86164.0,86163.0,0.0802]
[1741431164128,0.63738846,86164.0,86163.0,0.0802]
[1741431164839,0.27658846,86164.0,86163.0,0.0802]
[1741431165046,0.63738846,86164.0,86163.0,0.0802]
[1741431165243,0.52132146,86164.0,86159.0,0.34692004]
[1741431165448,0.1160724,86160.0,86159.0,0.34692004]
[1741431165641,0.1160724,86160.0,86155.0,0.41596532]
[1741431165840,0.4768778,86156.0,86155.0,0.41596532]
[1741431166641,0.5141778,86156.0,86155.0,0.41596532]
[1741431169054,0.51431086,86156.0,86155.0,0.41596532]
[1741431169351,0.653176,86156.0,86155.0,0.00017401]
[1741431171069,0.1160899,86147.0,86146.0,0.0763]
[1741431171255,0.5517299,86147.0,86146.0,0.0763]
[1741431172360,0.56348524,86147.0,86146.0,0.0763]
[1741431172761,0.60348524,86147.0,86146.0,0.0763]
[1741431176471,0.62092524,86147.0,86146.0,0.0763]
[1741431176668,0.98172524,86147.0,86146.0,0.0763]
[1741431178876,0.981831,86147.0,86146.0,0.0763]
[1741431179067,0.98183226,86147.0,86146.0,0.0763]
[1741431179267,0.98185292,86147.0,86146.0,0.0763]
[1741431179467,0.98172524,86147.0,86146.0,0.0763]
[1741431179669,0.98185186,86147.0,86146.0,0.0763]
[1741431179875,0.98186058,86147.0,86146.0,0.0763]
[1741431180178,0.98172524,86147.0,86146.0,0.0763]
[1741431181375,0.26012524,86147.0,86146.0,0.0763]
[1741431181578,0.98172524,86147.0,86146.0,0.0763]
[1741431183069,0.86563534,86147.0,86141.0,0.00174126]
[1741431183271,0.1160966,86142.0,86141.0,0.00174126]
[1741431183877,0.1161007,86139.0,86138.0,0.00017412]
[1741431184074,0.4769007,86139.0,86138.0,0.00017412]
[1741431184274,0.0580529,86136.0,86111.0,0.00174193]
[1741431184576,0.4769168,86127.0,86126.0,0.13085205]
[1741431184771,0.47700947,86127.0,86126.0,0.13085205]
[1741431184975,0.4769168,86127.0,86126.0,0.13085205]
[1741431185167,0.47704918,86127.0,86126.0,0.05266]
[1741431185372,0.5529168,86127.0,86126.0,0.05266]
[1741431185577,0.1161236,86122.0,86118.0,0.01171629]
[1741431185873,1.2832836,86122.0,86118.0,0.01171629]
[1741431186081,0.1161276,86119.0,86118.0,0.01171629]
[1741431186377,0.11621664,86119.0,86118.0,0.01171629]
[1741431186577,0.11621664,86119.0,86117.0,0.34639911]
[1741431186578,0.116129,86118.0,86117.0,0.34639911]
[1741431186879,0.192129,86118.0,86117.0,0.34639911]
[1741431189784,0.409829,86118.0,86117.0,0.34639911]
[1741431190087,0.409829,86118.0,86110.0,0.0785]
[1741431190088,0.1161384,86111.0,86110.0,0.0785]
[1741431190284,0.4769384,86111.0,86110.0,0.04036095]
[1741431190875,0.5557384,86111.0,86110.0,0.04036095]
[1741431191679,0.55582475,86111.0,86110.0,0.04036095]
[1741431191885,0.5558709,86111.0,86110.0,0.04036095]
[1741431192081,0.5557384,86111.0,86110.0,0.04036095]
[1741431194982,0.56761861,86111.0,86110.0,0.04036095]
[1741431195388,0.56771023,86111.0,86110.0,0.04036095]
[1741431195580,0.56761861,86111.0,86110.0,0.04036095]
[1741431196088,0.58505861,86111.0,86110.0,0.04036095]
[1741431197786,0.39012021,86111.0,86110.0,0.04036095]
[1741431197990,0.46496021,86111.0,86110.0,0.04036095]
[1741431199383,0.44752021,86111.0,86110.0,0.04036095]
[1741431199580,0.46496021,86111.0,86110.0,0.04036095]
[1741431200088,0.56380399,86111.0,86110.0,0.04036095]
[1741431200388,0.60165861,86111.0,86110.0,0.04036095]
[1741431200975,0.61909861,86111.0,86110.0,0.04036095]
[1741431201676,0.61920233,86111.0,86110.0,0.04036095]
[1741431201878,0.61909861,86111.0,86110.0,0.04036095]
[1741431202281,0.61909861,86111.0,86101.0,0.0379]
[1741431202487,0.4769506,86102.0,86101.0,0.0379]
[1741431202681,0.4769506,86102.0,86101.0,0.0753]
[1741431203285,0.5547506,86102.0,86101.0,0.0753]
[1741431204784,0.55487784,86102.0,86101.0,0.0753]
[1741431204985,0.5547506,86102.0,86101.0,0.0753]
[1741431205686,0.5547506,86102.0,86101.0,0.1143]
[1741431208297,0.1939506,86102.0,86101.0,0.1143]
[1741431208484,0.5547506,86102.0,86101.0,0.1143]
[1741431209884,0.36090823,86102.0,86101.0,0.1143]
[1741431210079,0.55189883,86102.0,86101.0,0.1143]
[1741431210281,0.55189883,86102.0,86101.0,0.0764]
[1741431210481,0.55189883,86102.0,86101.0,0.1138]
[1741431210989,0.62982726,86102.0,86101.0,0.0764]
[1741431211297,0.6296906,86102.0,86101.0,0.0764]
[1741431212898,0.62981832,86102.0,86101.0,0.0764]
[1741431213094,0.62977504,86102.0,86101.0,0.0764]
[1741431213396,0.6296906,86102.0,86101.0,0.0764]
[1741431215091,0.5517906,86102.0,86101.0,0.0764]
[1741431215295,0.43578656,86102.0,86101.0,0.0764]
[1741431215800,0.55193716,86102.0,86101.0,0.0764]
[1741431216391,0.56937716,86102.0,86101.0,0.0764]
[1741431218913,0.60957716,86102.0,86101.0,0.0764]
[1741431220005,0.37838656,86102.0,86101.0,0.1925519]
[1741431220214,0.43578656,86102.0,86101.0,0.1925519]
[1741431221018,0.07498656,86102.0,86101.0,0.1925519]
[1741431222514,0.07498656,86102.0,86101.0,0.20427008]
[1741431222717,0.00014656,86102.0,86101.0,0.20427008]
[1741431222922,0.00014656,86102.0,86101.0,0.28305547]
[1741431227123,0.00014656,86102.0,86101.0,0.58633373]
[1741431231123,0.00014656,86102.0,86101.0,0.54500126]
[1741431231320,0.00014656,86102.0,86101.0,0.50754834]
[1741431234015,5.904e-05,86102.0,86101.0,0.50754834]
[1741431235424,5.904e-05,86102.0,86101.0,0.20427008]
[1741431238930,5.904e-05,86102.0,86101.0,0.0764]
[1741431239121,0.11620964,86102.0,86101.0,0.1925519]
[1741431239518,0.11620964,86102.0,86101.0,0.1551519]
[1741431239919,0.19090964,86102.0,86101.0,0.1551519]
[1741431240219,0.07475904,86102.0,86101.0,0.1551519]
[1741431240819,0.07475904,86102.0,86101.0,0.1949519]
[1741431241222,0.19090964,86102.0,86101.0,0.1551519]
[1741431241422,0.07475904,86102.0,86101.0,0.1551519]
[1741431241622,0.07475904,86102.0,86101.0,0.19281393]
[1741431241931,0.07475904,86102.0,86101.0,0.23261393]
[1741431243821,0.07475904,86102.0,86101.0,0.27419221]
[1741431246425,0.07475904,86102.0,86101.0,0.92561118]
[1741431247728,0.11575904,86102.0,86101.0,0.92561118]
[1741431249632,5.904e-05,86102.0,86101.0,1.24874915]
[1741431249824,0.0405,86116.0,86105.0,0.0580727]
[1741431250026,0.03807412,86115.0,86114.0,0.1161344]
[1741431250224,0.15420712,86115.0,86114.0,0.1543346]
[1741431250435,0.03807412,86115.0,86114.0,0.1543346]
[1741431250630,0.00017412,86115.0,86114.0,0.1543346]
[1741431250831,0.00026812,86115.0,86114.0,0.19591288]
[1741431251027,0.00026812,86115.0,86114.0,0.23117081]
[1741431251535,0.00026812,86115.0,86114.0,0.19591288]
[1741431253536,0.00026812,86115.0,86114.0,0.50000456]
[1741431254439,0.00026812,86115.0,86114.0,0.45842628]
[1741431255739,0.00026812,86115.0,86114.0,0.50031544]
[1741431256842,0.00026812,86115.0,86114.0,0.54372622]
[1741431258142,0.10425265,86137.0,86125.0,0.0580592]
[1741431258439,0.038,86129.0,86128.0,0.1161155]
[1741431258628,0.038,86129.0,86128.0,0.1543157]
[1741431259139,0.03812565,86129.0,86128.0,0.19620486]
[1741431260939,0.03812565,86129.0,86128.0,0.20796434]
[1741431261139,0.03812565,86129.0,86128.0,0.16607518]
[1741431262238,0.03812565,86129.0,86128.0,0.12787498]
[1741431262743,0.03812565,86129.0,86128.0,0.16574632]
[1741431263737,0.03812565,86129.0,86128.0,0.12787498]
[1741431264141,0.03812565,86129.0,86128.0,0.16577811]
[1741431264340,0.03812565,86129.0,86128.0,0.12787498]
[1741431265445,0.03812565,86129.0,86128.0,0.40524841]
[1741431266135,0.03812565,86129.0,86128.0,0.44320992]
[1741431266443,0.03812565,86129.0,86128.0,0.40524841]
[1741431274242,0.03812565,86129.0,86128.0,0.44311077]
[1741431274836,0.03812565,86129.0,86128.0,0.40524841]
[1741431276448,0.03812565,86129.0,86128.0,0.33577848]
[1741431281053,0.03812565,86129.0,86128.0,0.16610339]
[1741431281541,0.03812565,86129.0,86128.0,0.20809588]
[1741431284558,0.03812565,86129.0,86128.0,0.51494973]
[1741431284959,0.03812565,86129.0,86128.0,0.55026742]
[1741431285848,0.03812565,86129.0,86128.0,0.51494973]
[1741431288351,0.03812565,86129.0,86128.0,0.93195268]
[1741431288554,0.03812565,86129.0,86128.0,0.89372427]
[1741431289353,0.03812565,86129.0,86128.0,0.85173178]
[1741431292159,0.03812565,86129.0,86128.0,0.43472883]
[1741431298462,0.03812565,86129.0,86128.0,0.47339044]
[1741431298668,0.03812565,86129.0,86128.0,0.50874697]
[1741431298970,0.03812565,86129.0,86128.0,0.51592614]
[1741431300266,0.03812565,86129.0,86128.0,0.59752614]
[1741431301263,0.03812565,86129.0,86128.0,0.55886453]
[1741431301464,0.03812565,86129.0,86128.0,0.51632883]
[1741431301772,0.15423985,86129.0,86128.0,0.34555482]
[1741431301961,0.51503985,86129.0,86128.0,0.30685385]
[1741431302158,0.51500124,86129.0,86128.0,0.30685385]
[1741431302369,0.5150483,86129.0,86128.0,0.30685385]
[1741431302665,0.5149142,86129.0,86128.0,0.30685385]
[1741431303070,0.5209142,86129.0,86128.0,0.30785385]
[1741431304263,0.52100031,86129.0,86128.0,0.30785385]
[1741431304466,0.5209142,86129.0,86128.0,0.30785385]
[1741431305769,0.53233421,86129.0,86128.0,0.30785385]
[1741431308171,0.53233421,86129.0,86128.0,0.001]
[1741431308672,0.53533421,86129.0,86128.0,0.002]
[1741431311378,0.41922001,86129.0,86128.0,0.002]
[1741431311582,0.41934404,86129.0,86128.0,0.002]
[1741431312274,0.46014404,86129.0,86128.0,0.002]
[1741431312878,0.57625824,86129.0,86128.0,0.002]
[1741431316080,0.59369824,86129.0,86128.0,0.002]
[1741431316277,0.57625824,86129.0,86128.0,0.002]
[1741431316469,0.59069824,86129.0,86128.0,0.001]
[1741431316672,0.59369824,86129.0,86128.0,0.002]
[1741431319374,0.66849824,86129.0,86128.0,0.002]
[1741431324378,0.66837421,86129.0,86128.0,0.002]
[1741431328177,0.66849228,86129.0,86128.0,0.002]
[1741431328487,0.66849228,86129.0,86128.0,0.0811]
[1741431328779,0.63049228,86129.0,86128.0,0.0811]
[1741431328977,0.61305228,86129.0,86128.0,0.0811]
[1741431329178,0.61305228,86129.0,86128.0,0.1972155]
[1741431329676,0.61305228,86129.0,86128.0,0.0811]
[1741431329878,0.61305228,86129.0,86128.0,0.1972155]
[1741431330075,0.65245228,86129.0,86128.0,0.1972155]
[1741431330279,0.65245228,86129.0,86128.0,0.0811]
[1741431336292,0.66989228,86129.0,86128.0,0.0811]
[1741431337290,0.66977421,86129.0,86128.0,0.002]
[1741431337484,0.66992385,86129.0,86128.0,0.002]
[1741431337686,0.66977421,86129.0,86128.0,0.002]
[1741431339182,0.66991849,86129.0,86128.0,0.002]
[1741431339383,0.66977421,86129.0,86128.0,0.002]
[1741431339782,0.66989336,86129.0,86128.0,0.002]
[1741431339990,0.66988656,86129.0,86128.0,0.002]
[1741431340184,0.66990896,86129.0,86128.0,0.002]
[1741431340495,0.77402686,86129.0,86128.0,0.21068742]
[1741431344787,1.13482686,86129.0,86128.0,0.21068742]
[1741431344989,1.13482686,86129.0,86128.0,0.002]
[1741431344990,1.03057421,86129.0,86128.0,0.002]
[1741431348192,1.03072399,86129.0,86128.0,0.002]
[1741431348391,1.03071244,86129.0,86128.0,0.002]
[1741431348597,1.03068897,86129.0,86128.0,0.002]
[1741431348800,1.03069363,86129.0,86128.0,0.002]